bitfinex-derivatives/quotes_BNBF0:USTF0_20250524
["timestamp","ask_amount","ask_price","bid_price","bid_amount"]
[1748127510844,1.66602801,669.36,668.99,1.149]
[1748127511145,2.67010389,669.35,668.99,1.149]
[1748127511340,1.66602801,669.34,668.99,1.149]
[1748127511540,1.66602801,669.33,668.99,1.149]
[1748127511741,2.67010389,669.32,668.99,1.149]
[1748127511945,1.66602801,669.31,668.99,1.149]
[1748127512145,2.67010389,669.3,668.99,1.149]
[1748127512343,1.66602801,669.29,668.99,1.149]
[1748127512545,1.11533253,669.28,668.99,1.149]
[1748127512849,2.11940841,669.27,668.99,1.149]
[1748127513044,1.11533253,669.26,668.99,1.149]
[1748127513242,1.00407588,669.27,668.99,1.149]
[1748127513547,2.11915411,669.26,668.99,1.149]
[1748127513741,1.11507823,669.25,668.99,1.149]
[1748127513945,1.00407588,669.26,668.99,1.149]
[1748127514143,1.00407588,669.25,668.99,1.149]
[1748127514543,1.00407588,669.24,668.99,1.149]
[1748127514749,1.1150193,669.23,668.99,1.149]
[1748127514951,1.00407588,669.24,668.99,1.149]
[1748127515144,2.11908776,669.23,668.99,1.149]
[1748127515344,1.00407588,669.23,668.99,1.149]
[1748127515642,1.00407588,669.22,668.99,1.149]
[1748127515848,1.00407588,669.21,668.99,1.149]
[1748127516348,1.00407588,669.2,668.99,1.149]
[1748127516849,1.00407588,669.19,668.99,1.149]
[1748127517247,1.00407588,669.18,668.99,1.149]
[1748127517849,1.00407588,669.17,668.99,1.149]
[1748127518350,1.00407588,669.16,668.99,1.149]
[1748127518850,1.112451,669.48,668.99,1.149]
[1748127519050,1.66347231,669.47,668.99,1.149]
[1748127519355,2.65392447,669.46,668.99,1.149]
[1748127519649,1.66347231,669.45,668.99,1.149]
[1748127519849,2.65392447,669.44,668.99,1.149]
[1748127520149,1.66347231,669.43,668.99,1.149]
[1748127520350,1.66347231,669.42,668.99,1.149]
[1748127520551,1.66347231,669.41,668.99,1.149]
[1748127520748,1.11452157,669.4,668.99,1.149]
[1748127520953,2.65384692,669.39,668.99,1.149]
[1748127521252,1.66339476,669.38,668.99,1.149]
[1748127521447,2.65384692,669.37,668.99,1.149]
[1748127521647,1.66339476,669.36,668.99,1.149]
[1748127521847,1.66339476,669.35,668.99,1.149]
[1748127522048,1.66339476,669.34,668.99,1.149]
[1748127522250,1.66339476,669.33,668.99,1.149]
[1748127522453,1.66339476,669.32,668.99,1.149]
[1748127522649,2.65384692,669.31,668.99,1.149]
[1748127522852,2.65384692,669.3,668.99,1.149]
[1748127523051,1.66339476,669.29,668.99,1.149]
[1748127523354,2.65384692,669.28,668.99,1.149]
[1748127523654,1.66339476,669.27,668.99,1.149]
[1748127523949,1.66339476,669.26,668.99,1.149]
[1748127524254,2.65384692,669.25,668.99,1.149]
[1748127524455,2.65384692,669.24,668.99,1.149]
[1748127524648,2.65384692,669.23,668.99,1.149]
[1748127524849,1.66339476,669.22,668.99,1.149]
[1748127525054,2.65384692,669.21,668.99,1.149]
[1748127525253,1.66339476,669.2,668.99,1.149]
[1748127525452,0.99045216,669.21,668.99,1.149]
[1748127525453,1.66339476,669.19,668.99,1.149]
[1748127525655,1.66339476,669.18,668.99,1.149]
[1748127525853,1.66339476,669.17,668.99,1.149]
[1748127526056,2.10497373,669.16,668.99,1.149]
[1748127526255,1.11452157,669.15,668.99,1.149]
[1748127526454,1.11452157,669.14,668.99,1.149]
[1748127526652,2.10497373,669.13,668.99,1.149]
[1748127526861,0.99045216,669.13,668.99,1.149]
[1748127527454,0.99045216,669.12,668.99,1.149]
[1748127528358,0.99045216,669.11,668.99,1.149]
[1748127529257,0.99045216,669.1,668.99,1.149]
[1748127529762,0.99045216,669.09,668.99,1.149]
[1748127530057,0.99045216,669.08,668.99,1.149]
[1748127530363,1.112451,669.42,668.99,1.149]
[1748127530659,1.66062337,669.41,668.99,1.149]
[1748127530863,1.66062337,669.4,668.99,1.149]
[1748127531065,1.66062337,669.39,668.99,1.149]
[1748127531260,2.64791099,669.38,668.99,1.149]
[1748127531457,1.66062337,669.37,668.99,1.149]
[1748127531658,1.66062337,669.36,668.99,1.149]
[1748127531860,2.64791099,669.35,668.99,1.149]
[1748127532161,1.66062337,669.34,668.99,1.149]
[1748127532365,2.64791099,669.33,668.99,1.149]
[1748127532565,1.66048447,669.32,668.99,1.149]
[1748127532865,1.66048447,669.31,668.99,1.149]
[1748127533066,2.64777209,669.3,668.99,1.149]
[1748127533266,1.66048447,669.29,668.99,1.149]
[1748127533461,2.64777209,669.28,668.99,1.149]
[1748127533660,1.66048447,669.27,668.99,1.149]
[1748127533860,1.66048447,669.26,668.99,1.149]
[1748127534066,1.66048447,669.25,668.99,1.149]
[1748127534362,1.66002954,669.24,668.99,1.149]
[1748127534663,1.66002954,669.23,668.99,1.149]
[1748127534966,1.66002954,669.22,668.99,1.149]
[1748127535161,1.66002954,669.21,668.99,1.149]
[1748127535462,1.66002954,669.2,668.99,1.149]
[1748127535666,2.64731716,669.19,668.99,1.149]
[1748127535863,1.66002954,669.18,668.99,1.149]
[1748127536063,2.64731716,669.17,668.99,1.149]
[1748127536262,1.11209896,669.16,668.99,1.149]
[1748127536467,2.09938658,669.15,668.99,1.149]
[1748127536764,1.11209896,669.14,668.99,1.149]
[1748127536967,1.11209896,669.13,668.99,1.149]
[1748127537168,0.98728762,669.15,668.99,1.149]
[1748127537362,1.11197386,669.14,668.99,1.149]
[1748127537567,0.98728762,669.14,668.99,1.149]
[1748127538369,2.6467754,669.13,668.99,1.149]
[1748127538571,1.65948778,669.12,668.99,1.149]
[1748127538769,1.65948778,669.11,668.99,1.149]
[1748127538971,2.6467754,669.1,668.99,1.149]
[1748127539172,1.65948778,669.09,668.99,1.149]
[1748127539373,1.65948778,669.08,668.99,1.149]
[1748127539667,2.6467754,669.07,668.99,1.149]
[1748127539868,1.11192243,669.06,668.99,1.149]
[1748127540170,2.09921005,669.05,668.99,1.149]
[1748127540371,2.09921005,669.04,668.99,1.149]
[1748127540574,1.11192243,669.03,668.99,1.149]
[1748127540773,0.98728762,669.04,668.99,1.149]
[1748127540973,0.98728762,669.02,668.99,1.149]
[1748127541168,1.11146051,669.01,668.99,1.149]
[1748127541366,0.98728762,669.0,668.99,1.149]
[1748127543268,2.09827452,669.0,668.99,1.149]
[1748127543577,0.98728762,669.0,668.99,1.149]
[1748127543773,2.09823442,669.0,668.99,1.149]
[1748127547579,2.64554805,669.0,668.99,1.149]
[1748127548977,2.64554805,669.0,668.55,0.47544884]
[1748127549180,1.65819837,668.99,668.56,0.47544884]
[1748127549374,1.1109468,668.98,668.56,0.47544884]
[1748127549673,1.1109468,668.97,668.56,0.47544884]
[1748127549873,2.09823442,668.96,668.56,0.47544884]
[1748127550077,1.11000049,668.95,668.56,0.47544884]
[1748127550277,0.98728762,668.96,668.56,0.47544884]
[1748127550478,0.98728762,668.94,668.56,0.47544884]
[1748127550978,0.98728762,668.94,668.32,0.67816837]
[1748127550979,0.98728762,668.93,668.55,0.47544884]
[1748127551578,0.98728762,668.92,668.55,0.47544884]
[1748127552579,0.98728762,668.91,668.56,0.47544884]
[1748127552880,0.98728762,668.9,668.56,0.47544884]
[1748127553678,0.98728762,668.89,668.56,0.47544884]
[1748127554274,0.98728762,668.88,668.56,0.47544884]
[1748127554480,0.98728762,668.88,668.61,0.47544884]
[1748127554780,1.10769483,669.28,668.61,0.47544884]
[1748127555079,1.65715838,669.27,668.61,0.47544884]
[1748127555279,1.65715838,669.26,668.61,0.47544884]
[1748127555479,1.65715838,669.25,668.61,0.47544884]
[1748127555774,2.64636375,669.24,668.61,0.47544884]
[1748127555977,2.64636375,669.23,668.61,0.47544884]
[1748127556177,1.65715838,669.22,668.62,0.47544884]
[1748127556378,1.65715838,669.21,668.62,0.47544884]
[1748127556578,2.64636375,669.2,668.62,0.47544884]
[1748127556877,2.64636375,669.19,668.62,0.47544884]
[1748127557080,2.64636375,669.18,668.62,0.47544884]
[1748127557380,1.65715838,669.17,668.62,0.47544884]
[1748127557581,1.65739273,669.16,668.62,0.47544884]
[1748127557777,2.09914233,669.15,668.62,0.47544884]
[1748127557975,1.65738073,669.14,668.64,0.47544884]
[1748127558179,2.6465861,669.13,668.64,0.47544884]
[1748127558482,1.65738073,669.12,668.64,0.47544884]
[1748127558678,2.6465861,669.11,668.64,0.47544884]
[1748127558883,1.65738073,669.1,668.64,0.47544884]
[1748127559085,1.65738073,669.09,668.64,0.47544884]
[1748127559286,2.6465861,669.08,668.64,0.47544884]
[1748127559487,1.65804335,669.07,668.64,0.47544884]
[1748127559686,1.65804335,669.06,668.64,0.47544884]
[1748127559982,2.64724872,669.05,668.64,0.47544884]
[1748127560186,2.64724872,669.04,668.64,0.47544884]
[1748127560386,1.65804335,669.03,668.64,0.47544884]
[1748127560588,1.65804335,669.02,668.64,0.47544884]
[1748127560791,1.65804335,669.01,668.59,0.47544884]
[1748127560983,2.09971199,669.0,668.59,0.47544884]
[1748127561186,1.11050662,668.99,668.59,0.47544884]
[1748127561388,2.10042343,668.98,668.59,0.47544884]
[1748127561687,1.11121806,668.97,668.59,0.47544884]
[1748127561887,0.98920537,668.98,668.59,0.47544884]
[1748127562088,0.98920537,668.96,668.6,0.47544884]
[1748127562289,0.98920537,668.95,668.6,0.47544884]
[1748127562989,0.98920537,668.94,668.6,0.47544884]
[1748127563589,1.10769483,669.23,668.6,0.47544884]
[1748127563783,1.66059266,669.22,668.6,0.47544884]
[1748127563983,1.66059266,669.21,668.6,0.47544884]
[1748127564188,2.22514116,669.46,668.6,0.47544884]
[1748127564189,1.66059266,669.2,668.6,0.47544884]
[1748127564386,1.66059266,669.19,668.6,0.47544884]
[1748127564589,1.66059266,669.18,668.6,0.47544884]
[1748127564785,2.65396748,669.17,668.6,0.47544884]
[1748127564992,1.66146447,669.16,668.6,0.47544884]
[1748127565189,1.66146447,669.15,668.6,0.47544884]
[1748127565393,2.65483929,669.14,668.61,0.47544884]
[1748127565691,2.65483929,669.13,668.61,0.47544884]
[1748127565894,1.66146447,669.12,668.61,0.47544884]
[1748127566092,1.11280097,669.11,668.61,0.47544884]
[1748127566290,0.99337482,669.12,668.61,0.47544884]
[1748127566291,1.11280097,669.1,668.61,0.47544884]
[1748127566491,1.11280097,669.09,668.61,0.47544884]
[1748127566693,2.10617579,669.08,668.61,0.47544884]
[1748127566891,1.11339552,669.07,668.61,0.47544884]
[1748127567091,0.99337482,669.08,668.61,0.47544884]
[1748127567296,1.11344192,669.07,668.53,0.47544884]
[1748127567591,2.10681674,669.06,668.53,0.47544884]
[1748127567797,0.99337482,669.06,668.53,0.47544884]
[1748127567997,0.99337482,669.05,668.53,0.47544884]
[1748127568193,0.99337482,669.05,668.54,1.84316837]
[1748127568497,0.99337482,669.04,668.54,1.84316837]
[1748127568998,0.99337482,669.03,668.54,1.84316837]
[1748127569393,0.99337482,669.02,668.54,2.31861721]
[1748127570002,0.99337482,669.01,668.54,2.31861721]
[1748127570400,0.99337482,669.0,668.55,0.67816837]
[1748127570798,1.10769483,669.29,668.55,0.67816837]
[1748127570998,1.66374416,669.28,668.55,0.67816837]
[1748127571198,1.66374416,669.27,668.57,0.47544884]
[1748127571402,2.65972245,669.26,668.57,0.47544884]
[1748127571601,1.66374416,669.25,668.57,0.47544884]
[1748127571800,2.65972245,669.24,668.57,0.47544884]
[1748127572002,1.66374416,669.23,668.57,0.47544884]
[1748127572204,2.65972245,669.22,668.57,0.47544884]
[1748127572505,1.66406678,669.21,668.57,0.47544884]
[1748127572703,1.66406678,669.2,668.57,0.47544884]
[1748127572900,1.66406678,669.19,668.57,0.47544884]
[1748127573104,1.66406678,669.18,668.57,0.47544884]
[1748127573300,1.66406678,669.17,668.57,0.47544884]
[1748127573501,1.66406678,669.16,668.57,0.47544884]
[1748127573705,2.66004507,669.15,668.54,1.84316837]
[1748127574004,1.66406678,669.14,668.55,0.67816837]
[1748127574200,1.66406678,669.13,668.55,0.67816837]
[1748127574402,2.66004507,669.12,668.55,0.67816837]
[1748127574604,1.66406678,669.11,668.55,0.67816837]
[1748127574799,1.66406678,669.1,668.55,0.67816837]
[1748127575105,2.11054708,669.09,668.55,0.67816837]
[1748127575305,1.11456879,669.08,668.55,0.67816837]
[1748127575505,2.11054708,669.07,668.55,0.67816837]
[1748127575706,0.99597829,669.07,668.56,0.67816837]
[1748127575907,1.10769483,669.37,668.56,0.67816837]
[1748127575908,0.99597829,669.06,668.56,0.67816837]
[1748127576403,0.99597829,669.05,668.56,0.67816837]
[1748127576602,0.99597829,669.04,668.56,0.67816837]
[1748127576907,2.11057786,669.03,668.56,0.67816837]
[1748127577107,1.11459957,669.02,668.56,0.67816837]
[1748127577408,0.99597829,669.01,668.56,0.67816837]
[1748127577609,0.99597829,669.0,668.54,1.165]
[1748127578107,0.99597829,668.99,668.54,1.165]
[1748127578308,0.99597829,668.98,668.54,1.165]
[1748127579011,0.99597829,668.97,668.54,1.165]
[1748127579810,0.99597829,668.96,668.54,1.165]
[1748127580006,0.99597829,668.95,668.54,1.165]
[1748127580609,0.99597829,668.94,668.54,1.165]
[1748127581210,0.99597829,668.93,668.54,1.165]
[1748127582010,1.10769483,669.39,668.54,1.165]
[1748127582208,1.66524168,669.38,668.54,1.165]
[1748127582406,1.66524168,669.37,668.54,1.165]
[1748127582606,1.66524168,669.36,668.54,1.165]
[1748127582809,1.66524168,669.35,668.54,1.165]
[1748127583010,1.66524168,669.34,668.54,1.165]
[1748127583210,1.66524168,669.33,668.54,1.165]
[1748127583407,1.66524168,669.32,668.54,1.165]
[1748127583607,2.66313908,669.31,668.54,1.165]
[1748127583811,1.66524168,669.3,668.54,1.165]
[1748127584111,2.66313908,669.29,668.54,1.165]
[1748127584307,1.66524168,669.28,668.54,1.165]
[1748127584512,2.66313908,669.27,668.54,1.165]
[1748127584813,1.66524168,669.26,668.54,1.165]
[1748127585012,2.66313908,669.25,668.54,1.165]
[1748127585313,2.65975121,669.24,668.54,1.165]
[1748127585613,1.66508952,669.23,668.54,1.165]
[1748127585812,2.65975121,669.22,668.54,1.165]
[1748127586012,1.66508952,669.21,668.54,1.165]
[1748127586209,1.66508952,669.2,668.54,1.165]
[1748127586409,2.65975121,669.19,668.54,1.165]
[1748127586707,1.66508952,669.18,668.54,1.165]
[1748127586911,2.65975121,669.17,668.54,1.165]
[1748127587214,1.66503543,669.16,668.54,1.165]
[1748127587413,2.65969712,669.15,668.54,1.165]
[1748127587610,1.66503543,669.14,668.54,1.165]
[1748127587812,1.66503543,669.13,668.54,1.165]
[1748127588009,2.65969712,669.12,668.54,1.165]
[1748127588211,1.66503543,669.11,668.59,0.67816837]
[1748127588413,2.65969712,669.1,668.59,0.67816837]
[1748127588714,1.66503543,669.09,668.59,0.67816837]
[1748127588909,1.66503543,669.08,668.59,0.67816837]
[1748127589209,1.66503543,669.07,668.59,0.67816837]
[1748127589413,1.66503543,669.06,668.59,0.67816837]
[1748127589609,1.66503543,669.05,668.59,0.67816837]
[1748127589814,2.65969712,669.04,668.61,0.47544884]
[1748127590014,1.66503543,669.03,668.61,0.47544884]
[1748127590214,1.66503543,669.02,668.61,0.47544884]
[1748127590414,2.65969712,669.01,668.61,0.47544884]
[1748127590614,1.66503543,669.0,668.61,0.47544884]
[1748127590815,2.65969712,668.99,668.61,0.47544884]
[1748127591015,1.66503543,668.98,668.61,0.47544884]
[1748127591219,2.10999316,668.97,668.64,0.47544884]
[1748127591421,2.10999316,668.96,668.64,0.47544884]
[1748127591721,2.10999316,668.95,668.64,0.47544884]
[1748127591922,0.99466169,668.95,668.64,0.47544884]
[1748127592323,0.99466169,668.94,668.64,0.47544884]
[1748127592824,0.99466169,668.93,668.64,0.47544884]
[1748127593125,0.99466169,668.92,668.64,0.47544884]
[1748127593425,0.99466169,668.92,668.56,1.15361721]
[1748127593625,1.10769483,669.18,668.56,1.15361721]
[1748127593822,1.66555977,669.17,668.56,1.15361721]
[1748127594023,2.66251113,669.16,668.65,0.67816837]
[1748127594223,1.66555977,669.15,668.65,0.67816837]
[1748127594421,1.66555977,669.14,668.72,0.47544884]
[1748127594623,2.66243902,669.13,668.72,0.47544884]
[1748127594827,1.66548766,669.12,668.72,0.47544884]
[1748127595027,1.66548766,669.11,668.72,0.47544884]
[1748127595221,1.66548766,669.1,668.72,0.47544884]
[1748127595425,1.66548766,669.09,668.72,0.47544884]
[1748127595629,2.1125012,669.08,668.72,0.47544884]
[1748127595821,1.11554984,669.07,668.72,0.47544884]
[1748127596022,2.1125012,669.06,668.72,0.47544884]
[1748127596324,0.99695136,669.06,668.72,0.47544884]
[1748127596525,0.99695136,669.05,668.67,0.67816837]
[1748127596928,0.99695136,669.04,668.67,0.67816837]
[1748127597323,0.99695136,669.03,668.67,0.67816837]
[1748127597830,0.99695136,669.02,668.67,0.67816837]
[1748127598432,1.10769483,669.3,668.67,0.67816837]
[1748127598631,1.66509167,669.29,668.67,0.67816837]
[1748127598934,2.66390097,669.28,668.67,0.67816837]
[1748127599133,1.66509167,669.27,668.67,0.67816837]
[1748127599335,1.66509167,669.26,668.67,0.67816837]
[1748127599637,2.66390097,669.25,668.71,0.67816837]
[1748127599828,1.66509167,669.24,668.71,0.67816837]
[1748127600027,1.66507757,669.23,668.71,0.67816837]
[1748127600230,2.66388687,669.22,668.71,0.67816837]
[1748127600434,0.9988093,669.22,668.71,0.67816837]
[1748127600634,0.9988093,669.21,668.71,0.67816837]
[1748127600934,0.9988093,669.2,668.71,0.67816837]
[1748127601335,0.9988093,669.2,668.57,0.47544884]
[1748127601336,0.9988093,669.2,668.79,0.67816837]
[1748127601634,0.9988093,669.19,668.79,0.67816837]
[1748127601935,0.9988093,669.18,668.79,0.67816837]
[1748127602435,1.11501832,669.17,668.79,0.67816837]
[1748127602635,0.9988093,669.18,668.79,0.67816837]
[1748127602831,1.11501974,669.17,668.79,0.67816837]
[1748127603035,0.9988093,669.17,668.79,0.67816837]
[1748127603236,0.9988093,669.17,668.68,0.67816837]
[1748127603535,0.9988093,669.16,668.68,0.67816837]
[1748127604135,0.9988093,669.15,668.68,0.67816837]
[1748127604530,0.9988093,669.14,668.68,0.67816837]
[1748127605037,0.9988093,669.13,668.65,0.67816837]
[1748127605435,0.9988093,669.12,668.65,0.67816837]
[1748127605936,0.9988093,669.11,668.65,0.67816837]
[1748127606337,1.10769483,669.45,668.65,0.67816837]
[1748127606533,1.66306696,669.44,668.65,0.67816837]
[1748127606732,1.66306849,669.43,668.65,0.67816837]
[1748127606937,2.66493118,669.42,668.65,0.67816837]
[1748127607137,1.66306849,669.41,668.65,0.67816837]
[1748127607331,2.66493118,669.4,668.65,0.67816837]
[1748127607539,2.66493118,669.39,668.65,0.67816837]
[1748127607738,1.66306849,669.38,668.65,0.67816837]
[1748127607937,2.66493118,669.37,668.65,0.67816837]
[1748127608138,2.66493118,669.36,668.65,0.67816837]
[1748127608335,1.66306849,669.35,668.65,0.67816837]
[1748127608540,2.66464231,669.34,668.65,0.67816837]
[1748127608736,1.66277962,669.33,668.68,0.67816837]
[1748127608936,1.66277962,669.32,668.68,0.67816837]
[1748127609138,2.66464231,669.31,668.68,0.67816837]
[1748127609337,1.66277962,669.3,668.68,0.67816837]
[1748127609539,1.66277962,669.29,668.68,0.67816837]
[1748127609735,1.11371705,669.28,668.68,0.67816837]
[1748127609943,1.11371705,669.27,668.68,0.67816837]
[1748127610140,1.00186269,669.27,668.68,0.67816837]
[1748127610536,1.00186269,669.27,668.8,0.47544884]
[1748127610741,1.00186269,669.26,668.8,0.47544884]
[1748127611442,1.00186269,669.25,668.8,0.47544884]
[1748127611841,1.00186269,669.24,668.8,0.47544884]
[1748127612242,1.00186269,669.24,668.77,0.47544884]
[1748127612437,1.00186269,669.23,668.77,0.47544884]
[1748127612942,1.00186269,669.22,668.77,0.47544884]
[1748127613538,1.00186269,669.21,668.77,0.47544884]
[1748127614241,1.00186269,669.2,668.7,0.47544884]
[1748127614843,1.00186269,669.19,668.7,0.47544884]
[1748127615440,1.00186269,669.18,668.67,0.47544884]
[1748127615739,2.11482397,669.17,668.67,0.47544884]
[1748127615939,1.11296128,669.16,668.67,0.47544884]
[1748127616142,1.11296128,669.15,668.67,0.47544884]
[1748127616344,1.11296128,669.14,668.67,0.47544884]
[1748127616545,1.00186269,669.15,668.67,0.47544884]
[1748127616740,1.11282768,669.14,668.67,0.47544884]
[1748127616941,2.11469037,669.13,668.67,0.47544884]
[1748127617141,1.11282768,669.12,668.67,0.47544884]
[1748127617346,1.00186269,669.11,668.67,0.47544884]
[1748127617646,1.00186269,669.1,668.67,0.47544884]
[1748127618148,1.00186269,669.1,668.55,1.179]
[1748127618349,1.00186269,669.09,668.55,1.179]
[1748127618847,1.00186269,669.08,668.55,1.179]
[1748127619251,1.00186269,669.07,668.55,1.179]
[1748127619642,1.00186269,669.06,668.55,1.179]
[1748127620142,1.00186269,669.05,668.55,1.179]
[1748127620647,1.00186269,669.04,668.55,1.179]
[1748127620946,1.00186269,669.03,668.55,1.179]
[1748127621451,1.00186269,669.02,668.55,1.179]
[1748127621850,1.00186269,669.01,668.55,1.179]
[1748127622352,1.00186269,669.0,668.55,1.179]
[1748127622652,1.00186269,668.99,668.55,1.179]
[1748127623252,2.11513728,668.98,668.55,1.179]
[1748127623447,1.00186269,668.98,668.55,1.179]
[1748127623649,1.11334214,668.97,668.55,1.179]
[1748127623852,1.00186269,668.98,668.55,1.179]
[1748127624152,1.00186269,668.96,668.55,1.179]
[1748127624347,1.00186269,668.95,668.55,1.179]
[1748127624955,1.00186269,668.94,668.55,1.179]
[1748127625355,1.00186269,668.93,668.55,1.179]
[1748127625657,1.00186269,668.92,668.55,1.179]
[1748127625957,1.00186269,668.91,668.55,1.179]
[1748127626255,1.10769483,669.16,668.55,1.179]
[1748127626455,1.66232695,669.15,668.55,1.179]
[1748127626650,1.66232695,669.14,668.55,1.179]
[1748127626954,2.66072448,669.13,668.55,1.179]
[1748127627152,1.66232636,669.12,668.55,1.179]
[1748127627354,2.66072448,669.11,668.55,1.179]
[1748127627554,1.66232636,669.1,668.55,1.179]
[1748127627754,1.66232636,669.09,668.55,1.179]
[1748127628056,0.99839812,669.1,668.55,1.179]
[1748127628057,1.66232636,669.08,668.55,1.179]
[1748127628257,2.66072448,669.07,668.55,1.179]
[1748127628551,1.66232636,669.06,668.55,1.179]
[1748127628756,1.66233146,669.05,668.55,1.179]
[1748127628957,2.66072958,669.04,668.63,0.47544884]
[1748127629158,1.66233146,669.03,668.63,0.47544884]
[1748127629457,2.11183887,669.02,668.63,0.47544884]
[1748127629653,1.11344075,669.01,668.63,0.47544884]
[1748127629856,0.99839812,669.02,668.63,0.47544884]
[1748127630057,2.11191612,669.01,668.63,0.47544884]
[1748127630252,0.99839812,669.01,668.63,0.47544884]
[1748127630558,0.99839812,669.0,668.63,0.47544884]
[1748127631057,0.99839812,668.99,668.63,0.47544884]
[1748127631358,0.99839812,668.98,668.63,0.47544884]
[1748127631560,0.99839812,668.98,668.57,0.47544884]
[1748127631860,0.99839812,668.97,668.57,0.47544884]
[1748127632454,0.99839812,668.96,668.57,0.47544884]
[1748127632759,1.10769483,669.21,668.57,0.47544884]
[1748127632959,1.66261095,669.2,668.57,0.47544884]
[1748127633156,1.66261095,669.19,668.57,0.47544884]
[1748127633360,1.66261095,669.18,668.57,0.47544884]
[1748127633558,1.66261095,669.17,668.57,0.47544884]
[1748127633757,2.66186977,669.16,668.57,0.47544884]
[1748127633955,1.66261095,669.15,668.57,0.47544884]
[1748127634155,1.66261095,669.14,668.57,0.47544884]
[1748127634359,1.66261095,669.13,668.57,0.47544884]
[1748127634561,1.66261095,669.12,668.57,0.47544884]
[1748127634755,1.66261095,669.11,668.57,0.47544884]
[1748127634959,1.66261095,669.1,668.57,0.47544884]
[1748127635160,1.66261095,669.09,668.57,0.47544884]
[1748127635356,1.66261095,669.08,668.57,0.47544884]
[1748127635561,1.11360937,669.07,668.57,0.47544884]
[1748127635860,0.99925882,669.06,668.57,0.47544884]
[1748127636160,0.99925882,669.05,668.57,0.47544884]
[1748127636460,1.10769483,669.24,668.57,0.47544884]
[1748127636661,1.66293338,669.23,668.57,0.47544884]
[1748127636863,2.663553,669.22,668.57,0.47544884]
[1748127637161,2.663553,669.21,668.57,0.47544884]
[1748127637362,2.663553,669.2,668.57,0.47544884]
[1748127637658,1.66293338,669.19,668.66,0.47544884]
[1748127637862,2.66356314,669.18,668.66,0.47544884]
[1748127638063,1.66294352,669.17,668.66,0.47544884]
[1748127638263,2.66356314,669.16,668.66,0.47544884]
[1748127638462,1.66294352,669.15,668.66,0.47544884]
[1748127638663,1.11385893,669.14,668.66,0.47544884]
[1748127638863,2.11447855,669.13,668.66,0.47544884]
[1748127639065,1.11385893,669.12,668.66,0.47544884]
[1748127639365,1.11390361,669.11,668.66,0.47544884]
[1748127639558,1.00061962,669.11,668.66,0.47544884]
[1748127639965,1.00061962,669.1,668.67,0.47544884]
[1748127640663,1.00061962,669.09,668.67,0.47544884]
[1748127641564,1.00061962,669.08,668.67,0.47544884]
[1748127641764,1.00061962,669.07,668.67,0.47544884]
[1748127642566,1.00061962,669.06,668.67,0.47544884]
[1748127642766,1.00061962,669.06,668.71,0.47544884]
[1748127642964,1.00061962,669.05,668.71,0.47544884]
[1748127643361,1.00061962,669.04,668.71,0.47544884]
[1748127643968,1.10769483,669.3,668.71,0.47544884]
[1748127644168,1.66275431,669.29,668.71,0.47544884]
[1748127644361,1.66275431,669.28,668.71,0.47544884]
[1748127644566,1.66275431,669.27,668.71,0.47544884]
[1748127644764,1.66275431,669.26,668.71,0.47544884]
[1748127644967,1.66275431,669.25,668.71,0.47544884]
[1748127645268,1.10769483,669.2,668.63,0.47544884]
[1748127645468,2.66397592,669.19,668.63,0.47544884]
[1748127645669,1.66243207,669.18,668.63,0.47544884]
[1748127645968,2.66397592,669.17,668.63,0.47544884]
[1748127646168,2.66397592,669.16,668.63,0.47544884]
[1748127646368,1.66243207,669.15,668.63,0.47544884]
[1748127646569,2.66397592,669.14,668.63,0.47544884]
[1748127646762,1.66243207,669.13,668.63,0.47544884]
[1748127646966,1.66244439,669.12,668.63,0.47544884]
[1748127647165,1.66244439,669.11,668.63,0.47544884]
[1748127647371,1.66244439,669.1,668.63,0.47544884]
[1748127647570,1.66244439,669.09,668.63,0.47544884]
[1748127647768,2.66398824,669.08,668.63,0.47544884]
[1748127647971,1.66244439,669.07,668.63,0.47544884]
[1748127648269,2.66398824,669.06,668.63,0.47544884]
[1748127648473,1.66244439,669.05,668.63,0.47544884]
[1748127648674,1.00154385,669.04,668.63,0.47544884]
[1748127648871,1.66204836,669.03,668.63,0.47544884]
[1748127649076,2.66359221,669.02,668.55,1.179]
[1748127649272,1.66204836,669.01,668.55,1.179]
[1748127649471,2.66359221,669.0,668.55,1.179]
[1748127649775,2.66359221,668.99,668.55,1.179]
[1748127649978,1.66204836,668.98,668.55,1.179]
[1748127650277,2.66359221,668.97,668.55,1.179]
[1748127650478,1.66204836,668.96,668.55,1.179]
[1748127650678,1.66147482,668.95,668.55,1.179]